Cogmind - Beta 14 @@@ ROGUE MODE // 2024.12.06 @ 23:47:36 Player: Komeiji O. Result: Destroyed by G-47 Trooper with Particle Gun Performance ------------- Evolutions (0) 0 Regions Visited (2) 400 Robots Destroyed (30) 150 Value Destroyed (582) 582 Prototype IDs (0) 0 Alien Tech Used (0) 0 Bonus (0) 0 TOTAL SCORE: 1132 Bonus ------- None Cogmind --------- Core Integrity 0/250 Matter 287/300 Energy 249/250 System Corruption 2% Temperature Cool (18) Movement Treading (240) Ox1 Location -10/Subcaves Parts ------- > --- POWER (1) -------- Ion Engine > --- PROPULSION (2) --- Light Treads Light Treads > --- UTILITY (2) ------ High-capacity Storage Unit Seismic Detector > --- WEAPON (2) ------- Subdweller Laser Light Assault Rifle (fused) > --- INVENTORY (20) --- Light Ion Engine Wheel Compact Wheel Compact Wheel Compact Wheel Subdweller Monowheel Heat Sink Huge Storage Unit Large Matter Pod (150) Subdweller Optics Improved Terrain Scanner Seismic Detector Transport Network Coupler Light Assault Rifle Light Assault Rifle Light Assault Rifle Piercing Trap Peak State ------------ > --- POWER ------------ Ion Engine > --- PROPULSION ------- Light Treads Light Treads > --- UTILITY ---------- High-capacity Storage Unit Seismic Detector > --- WEAPON ----------- Subdweller Laser Light Assault Rifle > --- INVENTORY -------- Light Ion Engine Wheel Compact Wheel Compact Wheel Compact Wheel Subdweller Monowheel Heat Sink Huge Storage Unit Large Matter Pod Subdweller Optics Improved Terrain Scanner Seismic Detector Transport Network Coupler Light Assault Rifle Light Assault Rifle Light Assault Rifle Piercing Trap [Rating: 10] Favorites ----------- Power Ion Engine Engine Ion Engine Propulsion Light Treads Treads Light Treads Wheel Wheel Utility High-capacity Storage Unit Device Seismic Detector Storage High-capacity Storage Unit Weapon Light Assault Rifle Energy Gun Subdweller Laser Ballistic Gun Light Assault Rifle Build | -11 -10 -10 ------- Run | Yrd Mat Sub Slots Evolved . | . . . Power . | . . . Propulsion . | . . . Utility . | . . . Weapon . | . . . Parts Attached 31 | 8 14 9 Power 3 | 1 2 . Engine 3 | 1 2 . Core . | . . . Reactor . | . . . Propulsion 8 | 2 4 2 Treads 6 | 2 2 2 Leg . | . . . Wheel 2 | . 2 . Hover . | . . . Flight . | . . . Utility 9 | 3 3 3 Device 6 | 2 1 3 Storage 3 | 1 2 . Processor . | . . . Hackware . | . . . Protection . | . . . Artifact . | . . . Weapon 11 | 2 5 4 Energy Gun 2 | . 1 1 Energy Cannon . | . . . Ballistic Gun 9 | 2 4 3 Ballistic Cannon . | . . . Launcher . | . . . Special Weapon . | . . . Impact Weapon . | . . . Slashing Weapon . | . . . Piercing Weapon . | . . . Special Melee Weapon . | . . . Unidentified Prototypes . | . . . Parts Lost 8 | . 5 3 Power 1 | . 1 . Propulsion 2 | . 1 1 Utility 1 | . 1 . Weapon 4 | . 2 2 Highest Loss Streak 2 | . 2 2 To Critical Strikes . | . . . Average Slot Usage (%) 99 | . 99 99 Engine 13 | . 13 14 Treads 22 | . 18 26 Wheel 5 | . 9 1 Device 13 | . 13 14 Storage 14 | . 14 14 Energy Gun 10 | . 7 13 Ballistic Gun 17 | . 20 14 Peak Build Rating 10 | 7 8 10 Average Rating 8 | 5 7 8 On Entrance 5 | . 7 8 Naked Turns . | . . . Heaviest Build 89 | 11 89 51 Greatest Support 40 | 40 40 40 Greatest Overweight (x) 8 | 3 8 5 Average Overweight (x) 2 | . 4 1 Largest Inventory Capacity 25 | 8 25 20 Average Capacity 19 | 7 19 20 Most Carried 17 | 5 14 17 Average Carried 11 | 2 8 15 Final Capacity 20 | 8 20 20 Final Carried 17 | 5 14 17 Class Distribution -------------------- 57% | Mutant 42% | Scavenger-Mutant Dominant Class ---------------- Mutant | -10/Materials Scavenger-Mutant | -10/Subcaves Resources | -11 -10 -10 ----------- Run | Yrd Mat Sub Matter Collected 773 | 257 345 171 Remotely 216 | 99 117 . Salvage Created 865 | 63 583 219 Parts 72 | 5 49 18 Haulers Intercepted 1 | . 1 . Recyclers Shooed . | . . . Parts Field Recycled . | . . . Retrieved Matter . | . . . Parts Self-Destructed 17 | . . 17 Prevented . | . . . Kills | -11 -10 -10 ------- Run | Yrd Mat Sub Combat Hostiles Destroyed 23 | . 17 6 Melee 1 | . 1 . Guns 22 | . 16 6 Classes Destroyed 8 | 2 5 1 Tunneler 2 | 1 1 . Hauler 1 | . 1 . Recycler 1 | 1 . . Operator 1 | . 1 . Watcher 2 | . 2 . Swarmer 12 | . 9 3 Grunt 8 | . 8 . Subdweller 3 | . . 3 Best Kill Streak 6 | 2 6 3 Combat Bots Only 6 | . 6 3 Max Kills in Single Turn 2 | 1 2 1 Gunslinging 1 | . 1 . Exploded . | . . . Melee 1 | . 1 . Uniques/NPCs Destroyed . | . . . Combat | -11 -10 -10 -------- Run | Yrd Mat Sub Hostile Shots Fired 138 | . 100 38 Missed 40 | . 32 8 Damage Taken 1185 | . 636 549 Core 265 | . 132 133 Absorbed by Shields . | . . . Core Remaining (%) 100 | 100 . . Volleys Fired 96 | 4 67 25 Largest 2 | 2 2 2 Hottest 80 | 40 70 80 Shots Fired 187 | 8 132 47 Gun 187 | 8 132 47 Cannon . | . . . Launcher . | . . . Special . | . . . Kinetic 148 | 8 109 31 Thermal 39 | . 23 16 Explosive . | . . . Electromagnetic . | . . . Robot Hit Streak 23 | 3 15 23 Robot Miss Streak 6 | 1 6 2 Penetration Max . | . . . Secondary Targets 8 | . 6 2 Max Gunslinging Chain 1 | . 1 1 Shots Hit Robots 119 | 6 80 33 Core Hits 56 | 4 39 13 Critical Kills . | . . . Critical Parts Destroyed 1 | . 1 . Critical Strikes 2 | . 1 1 Burn 1 | . . 1 Destroy 1 | . 1 . Melee Attacks . | . . . Impact . | . . . Slashing . | . . . Piercing . | . . . Sneak Attacks . | . . . Combat Hostiles . | . . . Follow-up Attacks . | . . . Damage Inflicted 1143 | 45 779 319 Guns 1124 | 45 760 319 Cannons . | . . . Explosions . | . . . Melee . | . . . Ramming 19 | . 19 . Kinetic 805 | 45 570 190 Thermal 319 | . 190 129 Explosive . | . . . Electromagnetic . | . . . Impact . | . . . Slashing . | . . . Piercing . | . . . Highest Corruption 2 | . 2 2 Average Corruption 2 | . 2 2 Corruption Purged . | . . . Corruption Blocked . | . . . Effects 11 | . 1 10 Message Errors 3 | . 1 2 Matter Fused 1 | . . 1 Energy Discharges 1 | . . 1 Parts Rejected 1 | . . 1 Parts Fused 1 | . . 1 Data Loss (minor) 2 | . . 2 Misfires 2 | . . 2 Overload Shots . | . . . Overflow Damage . | . . . Projectiles . | . . . Explosions . | . . . Melee . | . . . Knockbacks . | . . . Impact . | . . . Kinetic . | . . . Secondary . | . . . Self-Inflicted Damage 7 | . 7 . Shots . | . . . Rammed 3 | . 3 . Targets Rammed 3 | . 3 . Kicked . | . . . Crushed . | . . . Highest Temperature 26 | . 26 9 Average Temperature 9 | . 9 7 Received Heat Transfer 318 | . 150 168 Siege Activations . | . . . Robots Corrupted . | . . . Combat Hostiles . | . . . Parts Fried . | . . . Impact Corruptions . | . . . Robots Melted . | . . . Combat Hostiles . | . . . Parts Melted 5 | . 1 4 Heat Transferred 938 | . 555 383 Parts Sabotaged . | . . . Parts Stolen . | . . . Parts Stripped . | . . . Power Chain Reactions . | . . . Alert | -11 -10 -10 ------- Run | Yrd Mat Sub Peak Influence 326 | 10 326 . Initial 6 | . 6 . Average 98 | 4 107 . Maximum Alert Level 1 | . 1 . Low Security (%) 87 | 100 86 . Level 1 12 | . 13 . Level 2 . | . . . Level 3 . | . . . Level 4 . | . . . Level 5 . | . . . High Security . | . . . Max Security . | . . . Squads Dispatched 5 | . 5 . Investigation 3 | . 3 . Extermination . | . . . Reinforcement 2 | . 2 . Assault . | . . . Garrison . | . . . Intercept . | . . . Searches Triggered . | . . . Construction Impeded . | . . . Haulers Reinforced . | . . . Active Scanning Responses . | . . . Cargo Convoy Interrupts . | . . . Stealth | -11 -10 -10 --------- Run | Yrd Mat Sub Distress Signals 1 | . 1 . Communications Jammed . | . . . Distress Signals . | . . . Times Spotted 35 | . 28 7 Peak Tracking Total 5 | . 5 3 Tactical Retreats 1 | . 1 . Traps | -11 -10 -10 ------- Run | Yrd Mat Sub Traps Triggered 1 | . 1 . Indirectly . | . . . Trap Hack Attempts . | . . . Triggered . | . . . Disarmed . | . . . Reprogrammed . | . . . Reused . | . . . Traps Extracted . | . . . Installed . | . . . Triggered 1 | . . 1 Most Traps Carried 1 | . . 1 Machines | -11 -10 -10 ---------- Run | Yrd Mat Sub Machines Disabled . | . . . Max in Single Turn . | . . . Machines Repaired . | . . . Machines Dismantled . | . . . Machines Sabotaged . | . . . Overloaded Fab Kills . | . . . Hacking | -11 -10 -10 --------- Run | Yrd Mat Sub Machines Accessed 7 | . 7 . Terminals 5 | . 5 . Fabricators . | . . . Repair Stations . | . . . Recycling Units 2 | . 2 . Scanalyzers . | . . . Garrison Access . | . . . Total Hacks 15 | . 15 . Successful 9 | . 9 . Failed 6 | . 6 . Catastrophic 1 | . 1 . Database Lockouts . | . . . Manual 11 | . 11 . Terminals 13 | . 13 . Fabricators . | . . . Repair Stations . | . . . Recycling Units 2 | . 2 . Scanalyzers . | . . . Garrison Access . | . . . Terminal Hacks 7 | . 7 . Part Schematic 1 | . 1 . Robot Analysis 1 | . 1 . Alert Level 1 | . 1 . Unreport Threat 1 | . 1 . Locate Traps 2 | . 2 . Zone Layout 1 | . 1 . Fabricator Hacks . | . . . Repair Station Hacks . | . . . Recycling Unit Hacks . | . . . Scanalyzer . | . . . Garrison Access Hacks . | . . . Unauthorized Hacks 2 | . 2 . Terminals . | . . . Fabricators . | . . . Repair Stations . | . . . Recycling Units 2 | . 2 . Tunnel 2 | . 2 . Scanalyzers . | . . . Garrison Access . | . . . Data Cores Recovered . | . . . Used . | . . . Hacking Detections 2 | . 2 . Full Trace Events . | . . . Feedback Events . | . . . Feedback Blocked . | . . . Robot Schematics Acquired . | . . . Robots Built . | . . . Authchips . | . . . Time . | . . . Total Robot Build Rating . | . . . Part Schematics Acquired 1 | . 1 . Parts Built . | . . . Authchips . | . . . Time . | . . . Total Part Build Rating . | . . . Parts Repaired . | . . . Time . | . . . Parts Recycled . | . . . Recycled Matter . | . . . Retrieved Matter . | . . . Retrieved Components . | . . . Parts Scanalyzed . | . . . Part Schematics Acquired . | . . . Parts Damaged . | . . . Bothacking | -11 -10 -10 ------------ Run | Yrd Mat Sub Used RIF Installer . | . . . Robots Hacked . | . . . Non-combat . | . . . Combat . | . . . Robot Hacks Applied . | . . . Relay Couplers Released . | . . . Fabnet Peak Effective % . | . . . Robots Rewired . | . . . Allies Hacked . | . . . Hacks Repelled . | . . . Allies | -11 -10 -10 -------- Run | Yrd Mat Sub Total Allies . | . . . Largest Group . | . . . Highest-Rated Group . | . . . Highest-Rated Ally . | . . . Total Orders . | . . . Ally Attacks . | . . . Total Damage . | . . . Kills . | . . . Allies Corrupted . | . . . Allies Melted . | . . . Intel | -11 -10 -10 ------- Run | Yrd Mat Sub Robot Analysis Total 1 | . 1 . Derelict Logs Recovered 1 | . . 1 Drone Launches . | . . . Drone Recoveries . | . . . Exploration | -11 -10 -10 ------------- Run | Yrd Mat Sub Turns Passed 2342 | 113 1161 1068 Spaces Moved 1016 | 56 528 432 Core 9 | 9 . . Treads 591 | 47 168 376 Legs . | . . . Wheels 416 | . 360 56 Hover . | . . . Flight . | . . . Fastest Speed 50 | 50 140 140 Average Speed 195 | 153 173 227 Slowest Speed 240 | 200 200 240 Overloaded Moves . | . . . Propulsion Burnouts . | . . . Robots Hopped . | . . . Cave-ins Triggered . | . . . Exploration Rate (%) 39 | 4 94 21 Regions Visited 2 Branch Regions 1 Pre-discovered Areas 3 | . 2 1 Known Exits Taken . | . . . Unknown Exits Taken 2 | 1 1 . Scrap Searched . | . . . Spaces Dug . | . . . Terrain Destroyed . | . . . Melee . | . . . Projectile . | . . . AOE . | . . . Terrain Rammed . | . . . Walls Destroyed . | . . . Machines Disabled . | . . . Actions | -11 -10 -10 --------- Run | Yrd Mat Sub Total 1203 | 74 652 477 Wait 31 | . 26 5 Move 1014 | 55 527 432 Hop . | . . . Pick Up 24 | 6 12 6 Fast Attach 8 | 7 . 1 Attach 8 | . 5 3 Detach . | . . . Swap 15 | 1 9 5 Drop 4 | 1 3 . Fire 96 | 4 67 25 Melee . | . . . Ram 1 | . 1 . Kick . | . . . Crush 2 | . 2 . Escape Stasis . | . . . Rewire . | . . . Trap . | . . . Miscellaneous . | . . . Route ------- -11/Scrapyard -10/Materials (discovered 5 exits: [*Mat x3] / [*Min] / [*Sub]) -10/Subcaves History --------- Turn | Location | Event 21 | -11/Scrapyard | Discovered new exit (range 15) 114 | -11/Scrapyard | Entered Materials 325 | -10/Materials | Build established: Mutant 428 | -10/Materials | Discovered new exit (range 16) 646 | -10/Materials | Discovered new exit (range 11) 768 | -10/Materials | Core integrity fell below 50% 949 | -10/Materials | Discovered new exit (range 16) 1102 | -10/Materials | Discovered new exit (range 7) 1267 | -10/Materials | Discovered new exit (range 6) 1275 | -10/Materials | Entered Subcaves 1379 | -10/Subcaves | Core integrity fell below 20% 1511 | -10/Subcaves | Learned Materials stockpile data 1665 | -10/Subcaves | Build established: Scavenger-Mutant 2054 | -10/Subcaves | A swath of the cavern ceiling suddenly collapsed 2078 | -10/Subcaves | Learned location of Zion (-7) 2078 | -10/Subcaves | Met a Zionite searching for "candidates" 2126 | -10/Subcaves | Shifting Twisted Machinery released Piercing Trap 2138 | -10/Subcaves | Shifting Twisted Machinery released Sub. Optics 2343 | -10/Subcaves | Destroyed by G-47 Trooper with Particle Gun Last Messages --------------- World map updated: -7/Zion. 02078_ Subatomizers dissect the Sub. Power Source, destroying it. 02089_ Subatomizers dissect the Sub. Monowheel. 02101_ System corrupted: FCS attempts to trigger Lgt. Assault Rifle. 02101_ System corrupted: Lgt. Assault Rifle misfires. 02114_ Subatomizers dissect the Sub. Monowheel. Piercing Trap falls loose from the Twisted Machinery. Sub. Optics falls loose from the Twisted Machinery. 02162_ System corrupted: Matter fused (-9). 02197_ Acquired Piercing Trap. 02215_ Acquired Sub. Optics. 02237_ System corrupted: Component data lost. 02252_ System corrupted: FCS attempts to trigger Lgt. Assault Rifle. 02252_ System corrupted: Lgt. Assault Rifle misfires. 02278_ D3-BWJ(u) tweaks Twisted Machinery. 02282_ C|OZKCRJXBOU6UR9BU>GMW9GW,C9D 02291_ D3-BWJ(u) tweaks Twisted Machinery. 02303_ System corrupted: Energy discharge (-77). 02333_ DH-C2O(z) destroyed. 02342_ Subatomizers dissect the Mak. Leg. Map ----- +----------------------------------------------------+ | #????????????????## " #???????????????? | | & #?????????????????# "#???????????????? | | % #?????????????????## ###???????????????? | | ### #?????????????????## #?????????????????? | | ##?# #?????????????????# ##?????????????????? | | ##?## ##?????????????????## #?????????????????? | | ##??# ##??????????????????#"" #?????????????????? | | #???# ###?????###????????## ##?????????????????? | | ##??## #???## ##????????# #?????????????????? | | ##### ##?## #????????# ##????????????????? | | ### #?# #????????# ######???????????? | | ##?# #### #???????## # ######??????? | | ####??## #??###### """ ""#??????? | | #?????# #??# ### ###"# # #####???? | | #????## # ####### = g## # ## ## #???? | | #????# #### #### #?# % ### #???? | | #????##???# ## #?# = # ## # ###???? | | ##?????????### # #?# ######### ##?????? | | #????????# # #### ##????# " "#??????? | | #????????# ####### z #### """" "#?????? | | ##????????? ##???## ### """" #????? | | #?????????? #?????# #?## """ #???? | | ?????????# ?????## #??# ##"""#???? | | ????????? ??????## ##??## ###? " ???? | | ????????? ???#;## %& ##???###????# ????? | | ????????? ????#; @ #???????????#?????? | | ????????? ????##### #?????????????????? | | ?????????? ????????# ## ##?????????????????? | | ????????? ????????# ### ##??????????????????? | | ????????? ???????? ??##???????????????????? | | ?????????? ???????## #???????????????????????? | | ??????????????????????# ???????????????????????? | | ?????????????????????? #???????????????????????? | | ??????????????????????# ???????????????????????? | | ?????????????????????? #???????????????????????? | | ??????????????????????# #???????????????????????? | | ?????????????????????? ???????????????????????? | | ??????????????????????? #???????????????????????? | | ??????????????????????? ????????????????????????? | | ??????????????????????? ????????????????????????? | | ??????????????????????? ????????????????????????? | | ?????????????????????????????????????????????????? | | ?????????????????????????????????????????????????? | | ?????????????????????????????????????????????????? | | ?????????????????????????????????????????????????? | | ?????????????????????????????????????????????????? | | ?????????????????????????????????????????????????? | | ?????????????????????????????????????????????????? | | ?????????????????????????????????????????????????? | | ?????????????????????????????????????????????????? | +----------------------------------------------------+ Best States ------------- Heat Dissipation 35 Energy Generation 10 Energy Capacity 250 Matter Stores 300 Matter Capacity 300 Sight Range 16 Terrain Scan Density 10 Evasion (%) 40 Recoil Reduction 2 Item Schematics ----------------- Hcp. Storage Unit | -10/Materials | Hacked Robot Schematics ------------------ None Fabricated ------------ Nothing Alien Tech Used ----------------- None Achievements -------------- None Challenges ------------ None Game ------ Seed SpacefoldGhostWartreads Manual? 0 Play Time 00:16:16 Cumulative 228.1 hours Start 2024.12.06 @ 23:35:01 End 2024.12.06 @ 23:47:36 Sessions 1 Manual Loads 0 Difficulty Rogue Special Mode None Game No. 79 Rogue 78 Adventurer 1 Explorer 0 Win Type - Total 5 Types 4/0/1/0/0/0/0/0/0 Lore% 59 Gallery% 72 Achievement% 58 Wizard Run 0 Options --------- Layout 0 ASCII 1 Keyboard 1 Movement Vi Keybinds 0 Fullscreen 2 Font 36/Terminus++ Map View 76x50 Zoom Use 0% Tactical HUD 1 Map Filters NONE Filters NONE Steam 1 RUN: de2d72b1-67e4-47cd-9cc5-ac46bff7eb8f